{"text_format":"3","workbook":"xlsx","n_sheets":3,"sheets":["Opiskelijaluettelo","Kurssin osallistujat","Opiskelijan tiedot"],"not_rendered":{"images":2,"defined_names":8},"read":"whole","date_system":"1900"}

{"sheet":"Opiskelijaluettelo","index":0,"n_rows":8,"n_cols":13,"rows_kept":8,"merged":[[1,2,2,3],[1,4,1,11],[2,4,2,11],[6,12,8,16]]}
[]
[null,null,"Opiskelijaluettelo",null,"SIIRRY KURSSIN OSALLISTUJIIN"]
[{"$nulls":4},"SIIRRY OPISKELIJAN TIETOIHIN"]
[null,null,"OPISKELIJAN NIMI","SÄHKÖPOSTI","KOTIPUHELIN","MATKAPUHELIN","SYNTYMÄAIKA","HÄTÄYHTEYSTIEDOT","PUHELIN HÄTÄTILANTEESSA","LÄÄKÄRI","LÄÄKÄRIN PUHELINNUMERO","  "]
[null,null,"Nimi 1","Sähköpostiosoite","Kotipuhelin","Matkapuhelin","Päivämäärä","Yhteystieto 1","Puhelin hätätilanteessa","Lääkäri 1","Lääkärin puhelinnumero"]
[null,null,"Nimi 2","Sähköpostiosoite","Kotipuhelin","Matkapuhelin","Päivämäärä","Yhteystieto 2","Puhelin hätätilanteessa","Lääkäri 2","Lääkärin puhelinnumero"]
[null,null,"Nimi 3","Sähköpostiosoite","Kotipuhelin","Matkapuhelin","Päivämäärä","Yhteystieto 3","Puhelin hätätilanteessa","Lääkäri 3","Lääkärin puhelinnumero",null,"Vinkki: voit lisätä opiskelijoita painamalla sarkainnäppäintä taulukon viimeisessä solussa."]
[null,null,"Nimi 4","Sähköpostiosoite","Kotipuhelin","Matkapuhelin","Päivämäärä","Yhteystieto 4","Puhelin hätätilanteessa","Lääkäri 4","Lääkärin puhelinnumero"]

{"sheet":"Kurssin osallistujat","index":1,"n_rows":12,"n_cols":7,"rows_kept":12,"merged":[[1,2,2,2],[1,3,2,3],[1,4,1,6],[2,4,2,6]]}
[]
[null,null,"Kurssin osallistujat","Graafisen suunnittelun laitos","SIIRRY OPISKELIJALUETTELOON"]
[{"$nulls":4},"SIIRRY OPISKELIJAN TIETOIHIN"]
[null,null,"KURSSI","Kurssin nimi","ALKAMISPÄIVÄ","Päivämäärä"]
[null,null,"OPETTAJA","Opettaja 1","PÄÄTTYMISPÄIVÄ","Päivämäärä"]
[null,null,"ILMOITTAUTUNEET OPISKELIJAT",{"$f":"COUNTA(_Opiskelijaluettelo[OPISKELIJAN NIMI])","v":4}]
[]
[null,null,"OPISKELIJAN NIMI","SÄHKÖPOSTI","KOTIPUHELIN","MATKAPUHELIN","  "]
[null,null,"Nimi 1",{"$f":"IFERROR(VLOOKUP(_Opiskelijaluettelo[[#This Row],[OPISKELIJAN NIMI]],Opiskelijat[],2),\"\")","v":"Sähköpostiosoite"},{"$f":"IFERROR(VLOOKUP(_Opiskelijaluettelo[[#This Row],[OPISKELIJAN NIMI]],Opiskelijat[],3),\"\")","v":"Kotipuhelin"},{"$f":"IFERROR(VLOOKUP(_Opiskelijaluettelo[[#This Row],[OPISKELIJAN NIMI]],Opiskelijat[],4),\"\")","v":"Matkapuhelin"}]
[null,null,"Nimi 2",{"$f":"IFERROR(VLOOKUP(_Opiskelijaluettelo[[#This Row],[OPISKELIJAN NIMI]],Opiskelijat[],2),\"\")","v":"Sähköpostiosoite"},{"$f":"IFERROR(VLOOKUP(_Opiskelijaluettelo[[#This Row],[OPISKELIJAN NIMI]],Opiskelijat[],3),\"\")","v":"Kotipuhelin"},{"$f":"IFERROR(VLOOKUP(_Opiskelijaluettelo[[#This Row],[OPISKELIJAN NIMI]],Opiskelijat[],4),\"\")","v":"Matkapuhelin"}]
[null,null,"Nimi 3",{"$f":"IFERROR(VLOOKUP(_Opiskelijaluettelo[[#This Row],[OPISKELIJAN NIMI]],Opiskelijat[],2),\"\")","v":"Sähköpostiosoite"},{"$f":"IFERROR(VLOOKUP(_Opiskelijaluettelo[[#This Row],[OPISKELIJAN NIMI]],Opiskelijat[],3),\"\")","v":"Kotipuhelin"},{"$f":"IFERROR(VLOOKUP(_Opiskelijaluettelo[[#This Row],[OPISKELIJAN NIMI]],Opiskelijat[],4),\"\")","v":"Matkapuhelin"}]
[null,null,"Nimi 4",{"$f":"IFERROR(VLOOKUP(_Opiskelijaluettelo[[#This Row],[OPISKELIJAN NIMI]],Opiskelijat[],2),\"\")","v":"Sähköpostiosoite"},{"$f":"IFERROR(VLOOKUP(_Opiskelijaluettelo[[#This Row],[OPISKELIJAN NIMI]],Opiskelijat[],3),\"\")","v":"Kotipuhelin"},{"$f":"IFERROR(VLOOKUP(_Opiskelijaluettelo[[#This Row],[OPISKELIJAN NIMI]],Opiskelijat[],4),\"\")","v":"Matkapuhelin"}]

{"sheet":"Opiskelijan tiedot","index":2,"n_rows":13,"n_cols":4,"rows_kept":13,"merged":[[1,2,2,2],[1,3,1,4],[2,3,2,4],[3,2,3,3]]}
[]
[null,null,"Opiskelijan tiedot","SIIRRY OPISKELIJALUETTELOON"]
[{"$nulls":3},"SIIRRY KURSSIN OSALLISTUJIIN"]
[null,null,"VINKKI: VOIT PÄIVITTÄÄ OPISKELIJAN TIEDOT VALITSEMALLA OPISKELIJAN SOLUN D5 AVATTAVASTA LUETTELOSTA"]
[null,null,"OPISKELIJAN NIMI","Nimi 1"]
[null,null,"SÄHKÖPOSTI",{"$f":"IFERROR(VLOOKUP(OpiskelijanNimi,Opiskelijat[],2,FALSE),\"\")","v":"Sähköpostiosoite"}]
[null,null,"KOTIPUHELIN",{"$f":"IFERROR(VLOOKUP(OpiskelijanNimi,Opiskelijat[],3,FALSE),\"\")","v":"Kotipuhelin"}]
[null,null,"MATKAPUHELIN",{"$f":"IFERROR(VLOOKUP(OpiskelijanNimi,Opiskelijat[],4,FALSE),\"\")","v":"Matkapuhelin"}]
[null,null,"Syntymäaika",{"$f":"IFERROR(VLOOKUP(OpiskelijanNimi,Opiskelijat[],5,FALSE),\"\")","v":"Päivämäärä"}]
[null,null,"HÄTÄYHTEYSTIEDOT",{"$f":"IFERROR(VLOOKUP(OpiskelijanNimi,Opiskelijat[],6,FALSE),\"\")","v":"Yhteystieto 1"}]
[null,null,"PUHELIN HÄTÄTILANTEESSA",{"$f":"IFERROR(VLOOKUP(OpiskelijanNimi,Opiskelijat[],7,FALSE),\"\")","v":"Puhelin hätätilanteessa"}]
[null,null,"LÄÄKÄRI",{"$f":"IFERROR(VLOOKUP(OpiskelijanNimi,Opiskelijat[],8,FALSE),\"\")","v":"Lääkäri 1"}]
[null,null,"LÄÄKÄRIN PUHELINNUMERO",{"$f":"IFERROR(VLOOKUP(OpiskelijanNimi,Opiskelijat[],9,FALSE),\"\")","v":"Lääkärin puhelinnumero"}]